[Event "Klatovy Open-A 2024"]
[Site "Klatovy"]
[Date "2024.07.05"]
[Round "7.2"]
[White "Slovak, Kilian"]
[Black "Strnad, Jakub"]
[Result "1-0"]
[ECO "C62"]
[WhiteElo "2271"]
[BlackElo "1942"]
[Annotator "TA"]
[PlyCount "65"]
[EventDate "2024.06.21"]
[EventType "swiss"]
[EventCountry "CZE"]
[SourceTitle "playchess.com"]
[Source "ChessBase"]
[SourceQuality "1"]
[TimeControl "40/7200:0"]

{[%evp 15,65,42,48,47,47,60,60,52,47,53,52,43,47,56,75,50,101,91,114,108,103,96,98,94,96,58,197,204,189,182,201,197,203,194,199,164,193,184,193,193,420,407,376,322,494,473,746,722,1230,920,1059,812]} 1. e4 {[%emt 0:00:02]} e5 {[%emt 0:00:00]} 2. Nf3 {[%emt 0:00:00]} Nc6 {[%emt 0:00:00]} 3. Nc3 {[%emt 0:00:00]} Nf6 {[%emt 0:00:00]} 4. Bb5 {[%emt 0:00:00]} d6 {[%emt 0:00:00]} 5. d4 {[%emt 0:00:00]} exd4 {[%emt 0:00:00]} 6. Nxd4 {[%emt 0:00:00]} Bd7 {[%emt 0:00:00]} 7. Nxc6 {[%emt 0:00:00]} Bxc6 {[%emt 0:00:00]} 8. Bxc6+ {[%emt 0:00:00]} bxc6 {[%emt 0:00:00]} 9. Qe2 {[%emt 0:00:00]} Be7 {[%emt 0:00:00]} 10. b3 {[%emt 0:00:00]} O-O {[%emt 0:00:00]} 11. Bb2 {[%emt 0:00:00] Weiß steht etwas besser.} Re8 {[%emt 0:00:00]} 12. O-O-O {[%emt 0:00:00]} Bf8 {[%emt 0:06:29]} 13. f4 {[%emt 0:00:13]} a5 {[%emt 0:08:42][%cal Oa5a4]} 14. Qc4 {[%emt 0:08:12]} Qd7 {[%emt 0:05:25][%cal Oa5a4]} 15. Rhe1 {[%emt 0:02:26]} Rab8 {[%emt 0:08:21]} ({Günstiger ist} 15... d5 $14 16. Qa4 Qg4) 16. e5 $16 {[%emt 0:08:01]} Rb4 {[%emt 0:04:13]} 17. Qf1 {[%emt 0:00:56] Weiß steht deutlich aktiver.} Nd5 {[%emt 0:03:58]} 18. Nxd5 {[%emt 0:01:24]} cxd5 {[%emt 0:00:00]} 19. Rxd5 {[%emt 0:00:04]} a4 {[%emt 0:00:00]} 20. Ba3 {[%emt 0:09:53]} Qc6 {[%emt 0:03:24] Führt Schwarz ins Verderben.} ({Vorzuziehen ist} 20... Rbb8 $14) 21. Bxb4 $18 {[%emt 0:05:30]} Qxd5 {[%emt 0:00:52]} 22. exd6 {[%emt 0:03:43]} (22. bxa4 Qxa2 (22... dxe5 23. a3 $11) 23. Qb5 Qa1+ 24. Kd2 Qd4+ 25. Ke2 Re6 $19) 22... Rxe1+ {[%emt 0:01:33]} 23. Qxe1 {[%emt 0:01:23]} cxd6 {[%emt 0:00:00][%mdl 4096] Endspiel. KQB-KQB} 24. g3 {[%emt 0:00:00]} ({Jedoch nicht} 24. bxa4 $6 Qxa2 25. a5 Qa1+ 26. Kd2 Qd4+ 27. Kc1 Qa1+ 28. Kd2 Qd4+ 29. Ke2 Qc4+ 30. Kf3 (30. Kd1 Qxf4 31. g3 Qd4+ 32. Bd2 Qa1+ 33. Ke2 Qb2 $11) 30... Qxc2 $16) 24... axb3 {[%emt 0:00:00]} 25. axb3 {[%emt 0:00:00]} h6 {[%emt 0:00:23]} 26. Qd2 {[%emt 0:01:51]} Qc6 {[%emt 0:01:22]} 27. Kb2 {[%emt 0:00:00]} d5 $2 {[%emt 0:07:10] [#]} (27... Be7 28. Qd3 Bf8) 28. Bxf8 {[%emt 0:00:00]} Kxf8 {[%emt 0:00:00]} 29. Qd4 {[%emt 0:00:00]} Qe6 {[%emt 0:01:08]} (29... g5 $142 30. fxg5 hxg5) 30. b4 {[%emt 0:01:04][%cal Bb3b4,Bb4b5][%mdl 32] Weiß steht klar auf Gewinn.} f5 {[%emt 0:06:56]} (30... f6 $142 31. b5 Qf7 32. Qc5+ Kg8) 31. b5 {[%emt 0:00:12] [#] Schwarz muss nun b6 beachten.} Kf7 {[%emt 0:00:05]} 32. Kb3 {[%emt 0:00:26] Droht b6 und aus.} g5 {[%emt 0:02:28]} 33. c4 {[%emt 0:00:42] Gewichteter Fehlerwert: Weiß=0.08 (makellos) /Schwarz=0.38.  Fehler:       	---       	Schwarz=5     Ungenau:       	Weiß=1     	Schwarz=1     OK:         	Weiß=10    	Schwarz=7     Bester:       	Weiß=3     	---} 1-0